fUSD/lending_fUSD_20260610
["ID","MTS","AMOUNT","RATE_DAILY","PERIOD"]
[424637773,1781025046000,-150.0,0.00016299,2]
[424637758,1781025046000,-150.0,0.00016243,2]
[424637757,1781025046000,-150.0,0.00016237,2]
[424637762,1781025046000,-150.0,0.00016257,2]
[424637759,1781025046000,-170.21291421,0.00016254,2]
[424637754,1781025046000,-150.0,0.00016233,2]
[424637753,1781025046000,-150.0,0.00016219,2]
[424637756,1781025046000,-578.60148306,0.00016236,2]
[424637752,1781025046000,-578.60148306,0.00016218,2]
[424637755,1781025046000,-170.21291421,0.00016236,2]
[424637812,1781025047000,-150.0,0.00016413,2]
[424637821,1781025047000,-150.0,0.00016435,2]
[424637819,1781025047000,-170.21291421,0.00016434,2]
[424637815,1781025047000,-578.60148306,0.00016416,2]
[424637814,1781025047000,-170.21291421,0.00016416,2]
[424637822,1781025047000,-216.7152,0.00016435,2]
[424637832,1781025047000,-588.67,0.00016438,2]
[424637823,1781025047000,-300.0,0.00016437,2]
[424637825,1781025047000,-300.0,0.00016437,2]
[424637826,1781025047000,-300.0,0.00016437,2]
[424637827,1781025047000,-300.0,0.00016437,2]
[424637830,1781025047000,-300.0,0.00016437,2]
[424637831,1781025047000,-676.73,0.00016438,2]
[424637829,1781025047000,-300.0,0.00016437,2]
[424637828,1781025047000,-300.0,0.00016437,2]
[424637833,1781025047000,-7482.71,0.00016438,2]
[424637835,1781025047000,-1242.4,0.00016438,2]
[424637818,1781025047000,-350.0,0.00016433,3]
[424637824,1781025047000,-300.0,0.00016437,2]
[424637816,1781025047000,-150.0,0.00016431,2]
[424637808,1781025047000,-150.0,0.00016398,2]
[424637820,1781025047000,-578.60148306,0.00016434,2]
[424637834,1781025047000,-218.9167236,0.00016438,2]
[424637796,1781025047000,-7500.0,0.00016357,2]
[424637795,1781025047000,-300.0,0.00016356,2]
[424637797,1781025047000,-170.21291421,0.00016362,2]
[424637799,1781025047000,-150.0,0.00016363,2]
[424637807,1781025047000,-170.21291421,0.00016398,2]
[424637798,1781025047000,-578.60148306,0.00016362,2]
[424637809,1781025047000,-578.60148306,0.00016398,2]
[424637817,1781025047000,-150.0,0.00016433,2]
[424637801,1781025047000,-150.0,0.00016374,2]
[424637802,1781025047000,-170.21291421,0.0001638,2]
[424637803,1781025047000,-578.60148306,0.0001638,2]
[424637805,1781025047000,-150.0,0.00016394,2]
[424637804,1781025047000,-150.0,0.00016387,2]
[424637806,1781025047000,-150.0,0.00016398,2]
[424637810,1781025047000,-300.0,0.000164,2]
[424637813,1781025047000,-150.0,0.00016413,2]
[424637811,1781025047000,-150.0,0.00016411,2]
[424637800,1781025047000,-150.0,0.00016365,2]
[424637839,1781025047000,-184.89440209,0.00016438,2]
[424637842,1781025047000,-209.74651943,0.00016438,2]
[424637837,1781025047000,-177.183345,0.00016438,2]
[424637863,1781025047000,-151.0,0.00016438,2]
[424637862,1781025047000,-151.0,0.00016438,2]
[424637867,1781025047000,-151.0,0.00016438,2]
[424637866,1781025047000,-151.0,0.00016438,2]
[424637873,1781025047000,-774.886158,0.00016438,2]
[424637864,1781025047000,-151.0,0.00016438,2]
[424637865,1781025047000,-151.0,0.00016438,2]
[424637871,1781025047000,-774.886158,0.00016438,2]
[424637860,1781025047000,-151.0,0.00016438,2]
[424637870,1781025047000,-774.886158,0.00016438,2]
[424637869,1781025047000,-151.0,0.00016438,2]
[424637874,1781025047000,-774.886158,0.00016438,2]
[424637878,1781025047000,-774.886158,0.00016438,2]
[424637876,1781025047000,-774.886158,0.00016438,2]
[424637877,1781025047000,-774.886158,0.00016438,2]
[424637875,1781025047000,-774.886158,0.00016438,2]
[424637879,1781025047000,-774.886158,0.00016438,2]
[424637838,1781025047000,-280.30748984,0.00016438,2]
[424637872,1781025047000,-774.886158,0.00016438,2]
[424637854,1781025047000,-151.0,0.00016438,2]
[424637868,1781025047000,-151.0,0.00016438,2]
[424637852,1781025047000,-151.0,0.00016438,2]
[424637857,1781025047000,-151.0,0.00016438,2]
[424637836,1781025047000,-210.34607422,0.00016438,2]
[424637840,1781025047000,-156.85400429,0.00016438,2]
[424637843,1781025047000,-276.43351016,0.00016438,2]
[424637880,1781025047000,-774.886158,0.00016438,2]
[424637841,1781025047000,-204.78137186,0.00016438,2]
[424637844,1781025047000,-152.0,0.00016438,2]
[424637846,1781025047000,-300.0,0.00016438,3]
[424637847,1781025047000,-300.0,0.00016438,3]
[424637849,1781025047000,-300.0,0.00016438,3]
[424637845,1781025047000,-240.0,0.00016438,2]
[424637850,1781025047000,-300.0,0.00016438,3]
[424637853,1781025047000,-151.0,0.00016438,2]
[424637856,1781025047000,-151.0,0.00016438,2]
[424637861,1781025047000,-151.0,0.00016438,2]
[424637851,1781025047000,-152.0,0.00016438,2]
[424637855,1781025047000,-151.0,0.00016438,2]
[424637859,1781025047000,-151.0,0.00016438,2]
[424637848,1781025047000,-300.0,0.00016438,3]
[424637858,1781025047000,-151.0,0.00016438,2]
[424637917,1781025048000,-152.0,0.00016438,2]
[424637916,1781025048000,-158.72228664,0.00016438,2]
[424637919,1781025048000,-152.0,0.00016438,2]
[424637915,1781025048000,-2416.22407592,0.00016438,2]
[424637914,1781025048000,-2416.224079,0.00016438,2]
[424637909,1781025048000,-2416.224079,0.00016438,2]
[424637912,1781025048000,-2416.224079,0.00016438,2]
[424637920,1781025048000,-152.0,0.00016438,2]
[424637918,1781025048000,-152.0,0.00016438,2]
[424637913,1781025048000,-2416.224079,0.00016438,2]
[424637911,1781025048000,-2416.224079,0.00016438,2]
[424637921,1781025048000,-170.21291421,0.00016452,2]
[424637932,1781025048000,-578.60148306,0.00016488,2]
[424637923,1781025048000,-150.0,0.00016452,2]
[424637925,1781025048000,-150.0,0.00016464,2]
[424637927,1781025048000,-578.60148306,0.0001647,2]
[424637926,1781025048000,-170.21291421,0.0001647,2]
[424637924,1781025048000,-150.0,0.00016459,2]
[424637931,1781025048000,-170.21291421,0.00016488,2]
[424637929,1781025048000,-150.0,0.00016481,2]
[424637928,1781025048000,-150.0,0.00016472,2]
[424637933,1781025048000,-150.0,0.00016491,2]
[424637934,1781025048000,-150.0,0.00016497,2]
[424637935,1781025048000,-300.0,0.00016499,2]
[424637910,1781025048000,-2416.224079,0.00016438,2]
[424637922,1781025048000,-578.60148306,0.00016452,2]
[424637897,1781025048000,-2416.224079,0.00016438,2]
[424637895,1781025048000,-156.836525,0.00016438,2]
[424637901,1781025048000,-2416.224079,0.00016438,2]
[424637883,1781025048000,-774.886158,0.00016438,2]
[424637881,1781025048000,-774.886158,0.00016438,2]
[424637884,1781025048000,-774.886158,0.00016438,2]
[424637882,1781025048000,-774.886158,0.00016438,2]
[424637894,1781025048000,-152.0,0.00016438,2]
[424637886,1781025048000,-774.886158,0.00016438,2]
[424637936,1781025048000,-300.0,0.00016499,2]
[424637885,1781025048000,-774.886158,0.00016438,2]
[424637887,1781025048000,-774.886158,0.00016438,2]
[424637888,1781025048000,-774.886158,0.00016438,2]
[424637889,1781025048000,-774.886168,0.00016438,2]
[424637890,1781025048000,-152.0,0.00016438,2]
[424637891,1781025048000,-152.0,0.00016438,2]
[424637893,1781025048000,-152.0,0.00016438,2]
[424637892,1781025048000,-152.0,0.00016438,2]
[424637898,1781025048000,-2416.224079,0.00016438,2]
[424637899,1781025048000,-2416.224079,0.00016438,2]
[424637896,1781025048000,-2416.224079,0.00016438,2]
[424637902,1781025048000,-2416.224079,0.00016438,2]
[424637906,1781025048000,-2416.224079,0.00016438,2]
[424637903,1781025048000,-2416.224079,0.00016438,2]
[424637900,1781025048000,-2416.224079,0.00016438,2]
[424637908,1781025048000,-2416.224079,0.00016438,2]
[424637905,1781025048000,-2416.224079,0.00016438,2]
[424637907,1781025048000,-2416.224079,0.00016438,2]
[424637904,1781025048000,-2416.224079,0.00016438,2]
[424637937,1781025048000,-300.0,0.00016499,2]
[424637930,1781025048000,-150.0,0.00016483,2]
[424637939,1781025048000,-1000.0,0.000165,2]
[424637968,1781025048000,-150.0,0.00016595,2]
[424637967,1781025048000,-150.0,0.00016595,2]
[424637975,1781025048000,-578.60148306,0.00016613,2]
[424637969,1781025048000,-170.21291421,0.00016595,2]
[424637971,1781025048000,-578.60148306,0.00016595,2]
[424637970,1781025048000,-150.0,0.00016595,2]
[424637972,1781025048000,-150.0,0.00016603,2]
[424637977,1781025048000,-150.0,0.00016627,2]
[424637979,1781025048000,-150.0,0.00016628,2]
[424637981,1781025048000,-578.60148306,0.00016631,2]
[424637983,1781025048000,-170.21291421,0.00016649,2]
[424637985,1781025048000,-150.0,0.00016651,2]
[424637966,1781025048000,-150.0,0.00016589,2]
[424637976,1781025048000,-150.0,0.00016618,2]
[424637980,1781025048000,-170.21291421,0.00016631,2]
[424637982,1781025048000,-150.0,0.00016648,2]
[424637986,1781025048000,-150.0,0.00016661,2]
[424637987,1781025048000,-150.0,0.00016667,2]
[424637988,1781025048000,-170.21291421,0.00016667,2]
[424637989,1781025048000,-578.60148306,0.00016667,2]
[424637990,1781025048000,-150.0,0.00016676,2]
[424637994,1781025048000,-150.0,0.00016687,2]
[424637993,1781025048000,-578.60148306,0.00016685,2]
[424637991,1781025048000,-150.0,0.00016684,3]
[424637938,1781025048000,-6625.54188677,0.000165,2]
[424637992,1781025048000,-170.21291421,0.00016685,2]
[424637984,1781025048000,-578.60148306,0.00016649,2]
[424637974,1781025048000,-170.21291421,0.00016613,2]
[424637978,1781025048000,-150.0,0.00016628,2]
[424637973,1781025048000,-150.0,0.00016608,2]
[424637940,1781025048000,-853.94608,0.000165,2]
[424637964,1781025048000,-578.60148306,0.00016577,2]
[424637943,1781025048000,-258.96365645,0.000165,2]
[424637952,1781025048000,-150.0,0.0001653,2]
[424637951,1781025048000,-150.0,0.0001653,2]
[424637944,1781025048000,-170.21291421,0.00016506,2]
[424637942,1781025048000,-714.29,0.000165,2]
[424637945,1781025048000,-578.60148306,0.00016506,2]
[424637948,1781025048000,-150.0,0.00016511,2]
[424637946,1781025048000,-150.0,0.00016507,2]
[424637947,1781025048000,-150.0,0.00016511,2]
[424637949,1781025048000,-170.21291421,0.00016524,2]
[424637950,1781025048000,-578.60148306,0.00016524,2]
[424637941,1781025048000,-4686.55964528,0.000165,2]
[424637955,1781025048000,-578.60148306,0.00016542,2]
[424637953,1781025048000,-150.0,0.00016531,2]
[424637963,1781025048000,-170.21291421,0.00016577,2]
[424637959,1781025048000,-170.21291421,0.0001656,2]
[424637956,1781025048000,-150.0,0.0001655,2]
[424637958,1781025048000,-150.0,0.00016555,2]
[424637965,1781025048000,-150.0,0.00016579,2]
[424637961,1781025048000,-150.0,0.00016563,2]
[424637960,1781025048000,-578.60148306,0.0001656,2]
[424637957,1781025048000,-150.0,0.0001655,2]
[424637954,1781025048000,-170.21291421,0.00016542,2]
[424637962,1781025048000,-150.0,0.00016569,2]
[424638049,1781025049000,-150.0,0.00016859,2]
[424638028,1781025049000,-150.0,0.00016793,2]
[424638034,1781025049000,-300.0,0.00016799,2]
[424638033,1781025049000,-300.0,0.00016799,2]
[424638032,1781025049000,-150.0,0.00016796,2]
[424638030,1781025049000,-150.0,0.00016793,2]
[424638027,1781025049000,-150.0,0.00016784,2]
[424638035,1781025049000,-2000.0,0.000168,2]
[424638025,1781025049000,-170.21291421,0.00016775,2]
[424638026,1781025049000,-578.60148306,0.00016775,2]
[424638029,1781025049000,-170.21291421,0.00016793,2]
[424638031,1781025049000,-578.60148306,0.00016793,2]
[424638037,1781025049000,-170.21291421,0.00016811,2]
[424638036,1781025049000,-150.0,0.00016804,2]
[424638039,1781025049000,-150.0,0.0001682,2]
[424638041,1781025049000,-150.0,0.00016823,2]
[424638045,1781025049000,-150.0,0.00016843,2]
[424638024,1781025049000,-150.0,0.00016772,2]
[424638042,1781025049000,-150.0,0.00016826,2]
[424638040,1781025049000,-150.0,0.00016823,2]
[424638043,1781025049000,-170.21291421,0.00016829,2]
[424638044,1781025049000,-578.60148306,0.00016829,2]
[424638046,1781025049000,-150.0,0.00016844,2]
[424638051,1781025049000,-170.21291421,0.00016865,2]
[424638052,1781025049000,-578.60148306,0.00016865,2]
[424638038,1781025049000,-578.60148306,0.00016811,2]
[424638022,1781025049000,-150.0,0.00016765,2]
[424637999,1781025049000,-150.0,0.000167,2]
[424638020,1781025049000,-1934.38338736,0.00016761,2]
[424638054,1781025049000,-150.0,0.00016882,2]
[424637998,1781025049000,-300.0,0.00016699,2]
[424637996,1781025049000,-150.0,0.00016694,2]
[424637995,1781025049000,-150.0,0.00016687,2]
[424637997,1781025049000,-300.0,0.00016699,2]
[424638000,1781025049000,-853.94608,0.000167,2]
[424638005,1781025049000,-168.37,0.00016712,2]
[424638006,1781025049000,-170.21291421,0.00016721,2]
[424638001,1781025049000,-4686.55964528,0.000167,2]
[424638004,1781025049000,-150.0,0.00016706,2]
[424638008,1781025049000,-150.0,0.00016724,2]
[424638002,1781025049000,-170.21291421,0.00016703,2]
[424638019,1781025049000,-1328.27659266,0.00016761,2]
[424638007,1781025049000,-578.60148306,0.00016721,2]
[424638003,1781025049000,-578.60148306,0.00016703,2]
[424638012,1781025049000,-578.60148306,0.00016739,2]
[424638011,1781025049000,-170.21291421,0.00016739,2]
[424638010,1781025049000,-150.0,0.00016727,2]
[424638014,1781025049000,-150.0,0.00016748,2]
[424638017,1781025049000,-578.60148306,0.00016757,2]
[424638013,1781025049000,-150.0,0.00016745,2]
[424638016,1781025049000,-170.21291421,0.00016757,2]
[424638018,1781025049000,-150.0,0.0001676,2]
[424638015,1781025049000,-150.0,0.00016755,2]
[424638023,1781025049000,-1066.21,0.00016767,2]
[424638021,1781025049000,-150.0,0.00016765,2]
[424638009,1781025049000,-150.0,0.00016726,2]
[424638050,1781025049000,-150.0,0.00016862,2]
[424638103,1781025049000,-170.21291421,0.00017026,2]
[424638047,1781025049000,-170.21291421,0.00016847,2]
[424638086,1781025049000,-400.88242924,0.00016985,2]
[424638083,1781025049000,-170.21291421,0.00016973,2]
[424638088,1781025049000,-150.0,0.00016988,2]
[424638087,1781025049000,-160.35297169,0.00016985,2]
[424638085,1781025049000,-150.0,0.0001698,2]
[424638091,1781025049000,-150.0,0.00016991,2]
[424638092,1781025049000,-578.60148306,0.00016991,2]
[424638090,1781025049000,-170.21291421,0.00016991,2]
[424638093,1781025049000,-150.0,0.00016999,2]
[424638089,1781025049000,-150.0,0.00016991,2]
[424638094,1781025049000,-1162.24423848,0.00017,2]
[424638095,1781025049000,-853.94608,0.00017,2]
[424638099,1781025049000,-150.0,0.00017012,2]
[424638098,1781025049000,-578.60148306,0.00017009,2]
[424638097,1781025049000,-170.21291421,0.00017009,2]
[424638104,1781025049000,-578.60148306,0.00017026,2]
[424638101,1781025049000,-150.0,0.00017019,2]
[424638102,1781025049000,-150.0,0.00017023,2]
[424638100,1781025049000,-150.0,0.00017019,2]
[424638106,1781025049000,-150.0,0.00017036,2]
[424638105,1781025049000,-150.0,0.00017029,2]
[424638108,1781025049000,-170.21291421,0.00017044,2]
[424638109,1781025049000,-578.60148306,0.00017044,2]
[424638107,1781025049000,-150.0,0.00017038,2]
[424638048,1781025049000,-578.60148306,0.00016847,2]
[424638084,1781025049000,-578.60148306,0.00016973,2]
[424638082,1781025049000,-150.0,0.00016964,2]
[424638096,1781025049000,-4686.55964528,0.00017,2]
[424638079,1781025049000,-150.0,0.00016958,2]
[424638053,1781025049000,-150.0,0.00016868,2]
[424638081,1781025049000,-150.0,0.0001696,2]
[424638055,1781025049000,-170.21291421,0.00016883,2]
[424638056,1781025049000,-578.60148306,0.00016883,2]
[424638057,1781025049000,-150.0,0.00016892,2]
[424638059,1781025049000,-150.0,0.00016892,2]
[424638069,1781025049000,-578.60148306,0.00016919,2]
[424638060,1781025049000,-853.94608,0.000169,2]
[424638063,1781025049000,-170.21291421,0.00016901,2]
[424638062,1781025049000,-2000.0,0.000169,2]
[424638061,1781025049000,-4686.55964528,0.000169,2]
[424638067,1781025049000,-150.0,0.00016916,2]
[424638066,1781025049000,-270.77986285,0.00016915,2]
[424638058,1781025049000,-150.0,0.00016892,2]
[424638078,1781025049000,-578.60148306,0.00016955,2]
[424638077,1781025049000,-170.21291421,0.00016955,2]
[424638064,1781025049000,-578.60148306,0.00016901,2]
[424638080,1781025049000,-150.0,0.0001696,2]
[424638072,1781025049000,-193.13418008,0.00016925,2]
[424638071,1781025049000,-150.0,0.00016925,2]
[424638075,1781025049000,-150.0,0.0001694,2]
[424638076,1781025049000,-150.0,0.00016941,2]
[424638074,1781025049000,-578.60148306,0.00016937,2]
[424638070,1781025049000,-150.0,0.00016921,2]
[424638068,1781025049000,-170.21291421,0.00016919,2]
[424638065,1781025049000,-150.0,0.00016902,2]
[424638073,1781025049000,-170.21291421,0.00016937,2]
[424638148,1781025050000,-578.60148306,0.00017188,2]
[424638149,1781025050000,-150.0,0.00017195,2]
[424638150,1781025050000,-853.94608,0.000172,2]
[424638144,1781025050000,-150.0,0.00017188,2]
[424638147,1781025050000,-150.0,0.00017188,2]
[424638134,1781025050000,-170.21291421,0.00017152,2]
[424638145,1781025050000,-150.0,0.00017188,2]
[424638142,1781025050000,-150.0,0.00017175,2]
[424638143,1781025050000,-150.0,0.0001718,2]
[424638141,1781025050000,-578.60148306,0.0001717,2]
[424638151,1781025050000,-4686.55964528,0.000172,2]
[424638146,1781025050000,-170.21291421,0.00017188,2]
[424638152,1781025050000,-150.0,0.00017204,2]
[424638167,1781025050000,-170.21291421,0.0001726,2]
[424638162,1781025050000,-170.21291421,0.00017242,2]
[424638164,1781025050000,-150.0,0.00017252,2]
[424638155,1781025050000,-150.0,0.00017214,2]
[424638163,1781025050000,-578.60148306,0.00017242,2]
[424638156,1781025050000,-150.0,0.00017221,2]
[424638158,1781025050000,-578.60148306,0.00017224,2]
[424638153,1781025050000,-170.21291421,0.00017206,2]
[424638159,1781025050000,-150.0,0.00017228,2]
[424638157,1781025050000,-170.21291421,0.00017224,2]
[424638161,1781025050000,-150.0,0.00017234,2]
[424638160,1781025050000,-150.0,0.00017234,2]
[424638140,1781025050000,-170.21291421,0.0001717,2]
[424638154,1781025050000,-578.60148306,0.00017206,2]
[424638139,1781025050000,-150.0,0.00017165,2]
[424638110,1781025050000,-150.0,0.00017056,2]
[424638135,1781025050000,-578.60148306,0.00017152,2]
[424638116,1781025050000,-170.21291421,0.0001708,2]
[424638113,1781025050000,-170.21291421,0.00017062,2]
[424638112,1781025050000,-150.0,0.0001706,2]
[424638114,1781025050000,-578.60148306,0.00017062,2]
[424638111,1781025050000,-150.0,0.00017058,2]
[424638115,1781025050000,-150.0,0.00017077,2]
[424638119,1781025050000,-150.0,0.00017089,2]
[424638117,1781025050000,-578.60148306,0.0001708,2]
[424638121,1781025050000,-150.0,0.00017097,2]
[424638120,1781025050000,-150.0,0.00017097,2]
[424638165,1781025050000,-150.0,0.00017253,2]
[424638122,1781025050000,-170.21291421,0.00017098,2]
[424638136,1781025050000,-150.0,0.00017155,2]
[424638118,1781025050000,-150.0,0.00017084,2]
[424638126,1781025050000,-578.60148306,0.00017116,2]
[424638127,1781025050000,-150.0,0.00017116,2]
[424638125,1781025050000,-170.21291421,0.00017116,2]
[424638124,1781025050000,-150.0,0.00017108,2]
[424638128,1781025050000,-150.0,0.00017122,2]
[424638130,1781025050000,-150.0,0.00017132,2]
[424638131,1781025050000,-170.21291421,0.00017134,2]
[424638132,1781025050000,-578.60148306,0.00017134,2]
[424638137,1781025050000,-150.0,0.00017156,2]
[424638129,1781025050000,-7482.71,0.00017123,2]
[424638138,1781025050000,-150.0,0.00017156,2]
[424638133,1781025050000,-150.0,0.00017136,2]
[424638123,1781025050000,-578.60148306,0.00017098,2]
[424638169,1781025050000,-150.0,0.00017273,2]
[424638215,1781025050000,-150.0,0.00017396,2]
[424638171,1781025050000,-150.0,0.00017276,2]
[424638202,1781025050000,-150.0,0.00017386,2]
[424638212,1781025050000,-150.0,0.0001739,2]
[424638205,1781025050000,-578.60148306,0.00017386,2]
[424638203,1781025050000,-170.21291421,0.00017386,2]
[424638208,1781025050000,-150.0,0.0001739,2]
[424638201,1781025050000,-150.0,0.00017372,2]
[424638204,1781025050000,-150.0,0.00017386,2]
[424638206,1781025050000,-150.0,0.0001739,2]
[424638209,1781025050000,-150.0,0.0001739,2]
[424638207,1781025050000,-150.0,0.0001739,2]
[424638211,1781025050000,-150.0,0.0001739,2]
[424638210,1781025050000,-150.0,0.0001739,2]
[424638196,1781025050000,-239.0,0.00017361,2]
[424638213,1781025050000,-215.0,0.0001739,2]
[424638214,1781025050000,-150.0,0.0001739,2]
[424638221,1781025050000,-150.0,0.00017419,2]
[424638220,1781025050000,-2288.84027606,0.00017412,2]
[424638219,1781025050000,-150.0,0.0001741,2]
[424638222,1781025050000,-150.0,0.0001742,2]
[424638217,1781025050000,-170.21291421,0.00017404,2]
[424638218,1781025050000,-578.60148306,0.00017404,2]
[424638223,1781025050000,-170.21291421,0.00017422,2]
[424638225,1781025050000,-1241.61,0.00017424,2]
[424638224,1781025050000,-578.60148306,0.00017422,2]
[424638226,1781025050000,-150.0,0.00017429,2]
[424638168,1781025050000,-578.60148306,0.0001726,2]
[424638216,1781025050000,-4686.55964528,0.000174,2]
[424638197,1781025050000,-170.21291421,0.00017368,2]
[424638227,1781025050000,-150.0,0.00017439,2]
[424638199,1781025050000,-150.0,0.0001737,2]
[424638170,1781025050000,-150.0,0.00017273,2]
[424638172,1781025050000,-170.21291421,0.00017278,2]
[424638166,1781025050000,-150.0,0.00017254,2]
[424638173,1781025050000,-578.60148306,0.00017278,2]
[424638174,1781025050000,-150.0,0.00017287,2]
[424638176,1781025050000,-170.21291421,0.00017296,2]
[424638175,1781025050000,-150.0,0.00017292,2]
[424638198,1781025050000,-578.60148306,0.00017368,2]
[424638188,1781025050000,-170.21291421,0.00017332,2]
[424638177,1781025050000,-578.60148306,0.00017296,2]
[424638180,1781025050000,-1377.42282658,0.00017309,2]
[424638181,1781025050000,-2005.9555727,0.00017309,2]
[424638179,1781025050000,-150.0,0.00017302,2]
[424638178,1781025050000,-150.0,0.000173,2]
[424638186,1781025050000,-150.0,0.00017324,2]
[424638194,1781025050000,-150.0,0.00017353,2]
[424638182,1781025050000,-150.0,0.00017312,2]
[424638200,1781025050000,-150.0,0.0001737,2]
[424638190,1781025050000,-150.0,0.00017348,2]
[424638192,1781025050000,-578.60148306,0.0001735,2]
[424638191,1781025050000,-170.21291421,0.0001735,2]
[424638195,1781025050000,-150.0,0.00017361,2]
[424638189,1781025050000,-578.60148306,0.00017332,2]
[424638184,1781025050000,-578.60148306,0.00017314,2]
[424638187,1781025050000,-150.0,0.00017331,2]
[424638185,1781025050000,-150.0,0.0001732,2]
[424638183,1781025050000,-170.21291421,0.00017314,2]
[424638193,1781025050000,-150.0,0.00017351,2]
[424638266,1781025051000,-17881.4,0.00017572,2]
[424638260,1781025051000,-170.21291421,0.00017565,2]
[424638267,1781025051000,-468.85,0.00017572,2]
[424638261,1781025051000,-578.60148306,0.00017565,2]
[424638269,1781025051000,-150.0,0.00017583,2]
[424638259,1781025051000,-150.0,0.00017565,2]
[424638268,1781025051000,-150.0,0.00017576,2]
[424638264,1781025051000,-1255.79,0.00017572,2]
[424638265,1781025051000,-1864.76,0.00017572,2]
[424638262,1781025051000,-150.0,0.00017566,2]
[424638263,1781025051000,-20508.29,0.00017572,2]
[424638270,1781025051000,-170.21291421,0.00017583,2]
[424638286,1781025051000,-170.21291421,0.00017637,2]
[424638273,1781025051000,-150.0,0.00017585,2]
[424638281,1781025051000,-150.0,0.00017616,2]
[424638272,1781025051000,-578.60148306,0.00017583,2]
[424638277,1781025051000,-170.21291421,0.00017601,2]
[424638276,1781025051000,-4686.55964528,0.000176,2]
[424638275,1781025051000,-193.0,0.00017589,2]
[424638278,1781025051000,-578.60148306,0.00017601,2]
[424638279,1781025051000,-150.0,0.00017605,2]
[424638274,1781025051000,-150.0,0.00017589,2]
[424638280,1781025051000,-150.0,0.00017613,2]
[424638285,1781025051000,-150.0,0.00017637,2]
[424638256,1781025051000,-170.21291421,0.00017547,2]
[424638271,1781025051000,-150.0,0.00017583,2]
[424638254,1781025051000,-150.0,0.00017541,2]
[424638242,1781025051000,-170.21291421,0.00017493,2]
[424638252,1781025051000,-170.21291421,0.00017529,2]
[424638282,1781025051000,-170.21291421,0.00017619,2]
[424638235,1781025051000,-150.0,0.00017468,2]
[424638233,1781025051000,-170.21291421,0.00017458,2]
[424638228,1781025051000,-170.21291421,0.0001744,2]
[424638229,1781025051000,-578.60148306,0.0001744,2]
[424638231,1781025051000,-150.0,0.00017449,2]
[424638232,1781025051000,-150.0,0.00017452,2]
[424638230,1781025051000,-150.0,0.00017444,2]
[424638238,1781025051000,-578.60148306,0.00017475,2]
[424638237,1781025051000,-170.21291421,0.00017475,2]
[424638236,1781025051000,-150.0,0.00017468,2]
[424638247,1781025051000,-578.60148306,0.00017511,2]
[424638255,1781025051000,-150.0,0.00017546,2]
[424638243,1781025051000,-578.60148306,0.00017493,2]
[424638239,1781025051000,-150.0,0.00017484,2]
[424638244,1781025051000,-150.0,0.00017507,2]
[424638240,1781025051000,-150.0,0.00017488,2]
[424638245,1781025051000,-150.0,0.00017507,2]
[424638246,1781025051000,-170.21291421,0.00017511,2]
[424638257,1781025051000,-578.60148306,0.00017547,2]
[424638249,1781025051000,-150.0,0.00017517,2]
[424638258,1781025051000,-150.0,0.0001755,2]
[424638251,1781025051000,-150.0,0.00017527,2]
[424638253,1781025051000,-578.60148306,0.00017529,2]
[424638248,1781025051000,-150.0,0.00017517,2]
[424638250,1781025051000,-150.0,0.00017527,2]
[424638241,1781025051000,-150.0,0.00017492,2]
[424638284,1781025051000,-150.0,0.00017625,2]